bitfinex-derivatives/quotes_BNBF0:USTF0_20250406
["timestamp","ask_amount","ask_price","bid_price","bid_amount"]
[1743925859942,0.422,591.59,590.59,0.066]
[1743925864045,0.29436519,591.58,590.59,0.066]
[1743925866749,0.422,591.59,590.59,0.066]
[1743925867244,0.29438262,591.58,590.59,0.066]
[1743925869851,0.422,591.59,590.59,0.066]
[1743925870046,0.29436768,591.57,590.59,0.066]
[1743925873154,0.31097793,591.56,590.6,0.28703585]
[1743925873655,0.29436768,591.57,590.59,0.066]
[1743925874154,0.29436768,591.57,590.6,0.28703585]
[1743925875658,0.31097821,591.56,590.6,0.28703585]
[1743925875850,0.422,591.59,590.6,0.28703585]
[1743925876053,0.29436021,591.56,590.6,0.28703585]
[1743925877958,0.29436021,591.56,590.61,0.28703684]
[1743925878157,0.29436021,591.56,590.62,0.28703684]
[1743925878357,0.29436021,591.56,590.6,0.28703684]
[1743925878558,0.29436021,591.56,590.61,0.28703684]
[1743925878758,0.29436021,591.56,590.6,0.28703684]
[1743925880762,0.588,591.55,590.6,0.28703684]
[1743925881057,0.588,591.55,590.59,0.066]
[1743925881262,0.588,591.55,590.6,0.28703619]
[1743925883062,0.29435523,591.54,590.61,0.28703619]
[1743925883359,0.29435523,591.54,590.62,0.28703619]
[1743925883562,0.31097853,591.53,590.58,0.28703619]
[1743925884859,0.31097853,591.54,590.58,0.28703619]
[1743925885063,0.29436644,591.52,590.58,0.28703619]
[1743925885363,0.31097853,591.51,590.58,0.28703619]
[1743925886063,0.31097853,591.51,590.59,0.066]
[1743925886264,0.31097853,591.51,590.6,0.28703619]
[1743925887568,0.29436644,591.52,590.6,0.28703619]
[1743925887766,0.588,591.55,590.6,0.28703619]
[1743925887966,0.31097821,591.54,590.6,0.28703619]
[1743925888161,0.29436519,591.51,590.6,0.28703619]
[1743925890471,0.29436519,591.51,590.59,0.066]
[1743925890665,0.588,591.55,590.59,0.066]
[1743925890972,0.29437266,591.5,590.59,0.066]
[1743925893774,0.588,591.55,590.59,0.066]
[1743925894070,0.29437266,591.49,590.59,0.066]
[1743925895976,0.62,591.48,590.59,0.066]
[1743925897178,0.29438138,591.47,590.59,0.066]
[1743925899773,0.62,591.48,590.59,0.066]
[1743925901076,0.29441998,591.47,590.59,0.066]
[1743925902779,0.62,591.48,590.59,0.066]
[1743925903081,0.29438138,591.46,590.59,0.066]
[1743925905781,0.62,591.48,590.59,0.066]
[1743925906081,0.62,591.48,590.6,0.28702483]
[1743925906376,0.62,591.48,590.59,0.066]
[1743925906581,0.62,591.48,590.6,0.28702553]
[1743925907086,0.29437391,591.47,590.6,0.28702553]
[1743925909586,0.47,591.46,590.6,0.28702553]
[1743925911984,0.29437515,591.45,590.6,0.28702553]
[1743925914787,0.47,591.46,590.6,0.28702553]
[1743925915087,0.2943764,591.44,590.6,0.28702553]
[1743925916286,0.2943764,591.44,590.58,0.28702553]
[1743925916586,0.2943764,591.44,590.59,0.28702553]
[1743925916882,0.2943764,591.44,590.6,0.28702553]
[1743925917186,0.2943764,591.44,590.61,0.28702553]
[1743925917386,0.2943764,591.44,590.58,0.28702553]
[1743925917685,0.47,591.46,590.58,0.28702553]
[1743925918182,0.2943764,591.43,590.58,0.28702553]
[1743925918382,0.2943764,591.43,590.59,0.28702522]
[1743925918582,0.2943764,591.43,590.58,0.28702522]
[1743925919082,0.2943764,591.43,590.59,0.066]
[1743925919282,0.2943764,591.43,590.6,0.28702522]
[1743925920786,0.47,591.46,590.6,0.28702522]
[1743925921082,0.2943764,591.42,590.6,0.28702522]
[1743925921283,0.2943764,591.42,590.61,0.28702488]
[1743925921486,0.2943764,591.42,590.6,0.28702488]
[1743925921985,0.2943764,591.42,590.61,0.2870252]
[1743925922182,0.2943764,591.42,590.6,0.2870252]
[1743925922381,0.2943764,591.42,590.61,0.2870252]
[1743925922586,0.2943764,591.42,590.6,0.2870252]
[1743925922787,0.2943764,591.42,590.59,0.066]
[1743925922981,0.2943764,591.42,590.6,0.28702503]
[1743925923787,0.47,591.46,590.6,0.28702503]
[1743925924289,0.2943764,591.41,590.6,0.28702503]
[1743925926688,0.2943764,591.41,590.59,0.066]
[1743925926983,0.62,591.48,590.6,0.28702287]
[1743925928190,0.29437391,591.47,590.6,0.28702287]
[1743925928389,0.82337391,591.47,590.6,0.28702287]
[1743925929792,0.529,591.47,590.6,0.28702287]
[1743925930894,0.529,591.47,590.59,0.066]
[1743925931193,0.29437391,591.46,590.6,0.28702282]
[1743925932695,0.529,591.47,590.59,0.066]
[1743925932894,0.529,591.47,590.6,0.28702282]
[1743925933091,0.29437515,591.45,590.6,0.28702282]
[1743925934297,0.29437515,591.45,590.58,0.28702282]
[1743925934596,0.29437515,591.45,590.59,0.28702282]
[1743925934896,0.29437515,591.45,590.6,0.28702282]
[1743925935090,0.29437515,591.45,590.58,0.28702282]
[1743925935295,0.29437515,591.45,590.59,0.28702282]
[1743925935597,0.29437515,591.45,590.6,0.28702282]
[1743925935797,0.529,591.47,590.58,0.28702282]
[1743925935997,0.529,591.47,590.59,0.28702282]
[1743925936201,0.29437515,591.44,590.59,0.28702282]
[1743925936401,0.29437515,591.44,590.6,0.28702282]
[1743925936701,0.29437515,591.44,590.61,0.28702282]
[1743925936900,0.29437515,591.44,590.62,0.28702282]
[1743925937100,0.29437515,591.44,590.62,0.066]
[1743925937301,0.29437515,591.44,590.63,0.28702282]
[1743925937701,0.29437515,591.44,590.62,0.066]
[1743925937899,0.29437515,591.44,590.63,0.28702353]
[1743925938803,0.529,591.47,590.63,0.28702353]
[1743925939203,0.29437515,591.43,590.62,0.066]
[1743925939407,0.29437515,591.43,590.63,0.28702371]
[1743925941606,0.29437515,591.43,590.64,0.28702427]
[1743925941802,0.33803197,591.66,590.63,0.28702427]
[1743925942104,0.31096614,591.65,590.64,0.28702427]
[1743925942306,0.2943515,591.42,590.63,0.28702427]
[1743925942506,0.33803197,591.66,590.64,0.28702427]
[1743925942706,0.33803197,591.66,590.65,0.28702319]
[1743925942902,0.31096506,591.65,590.63,0.28702319]
[1743925943206,0.31096506,591.65,590.62,0.066]
[1743925943407,0.576,591.64,590.63,0.2870232]
[1743925943706,0.31096506,591.63,590.63,0.2870232]
[1743925943908,0.6053178,591.63,590.63,0.2870232]
[1743925944107,0.31096506,591.62,590.63,0.2870232]
[1743925944308,0.31096659,591.61,590.62,0.066]
[1743925944509,0.31096659,591.62,590.63,0.28702524]
[1743925944809,0.576,591.64,590.62,0.066]
[1743925945106,0.31096467,591.63,590.63,0.28702281]
[1743925945308,0.29435523,591.61,590.62,0.066]
[1743925947704,0.576,591.64,590.62,0.066]
[1743925947908,0.31099508,591.63,590.62,0.066]
[1743925948103,0.2943876,591.6,590.62,0.066]
[1743925950809,0.576,591.64,590.62,0.066]
[1743925951004,0.2943876,591.59,590.62,0.066]
[1743925953711,0.576,591.64,590.62,0.066]
[1743925953910,0.31099655,591.63,590.62,0.066]
[1743925954113,0.29439134,591.58,590.62,0.066]
[1743925956814,0.576,591.64,590.62,0.066]
[1743925957109,0.31099664,591.63,590.62,0.066]
[1743925957614,0.31099631,591.62,590.62,0.066]
[1743925957811,0.31099631,591.63,590.62,0.066]
[1743925958011,0.31099631,591.62,590.62,0.066]
[1743925958211,0.60541006,591.63,590.62,0.066]
[1743925958409,0.31099631,591.62,590.62,0.066]
[1743925959110,0.29441375,591.63,590.62,0.066]
[1743925959414,0.31100924,591.62,590.62,0.066]
[1743925960310,0.60542424,591.61,590.62,0.066]
[1743925960511,0.31100924,591.6,590.62,0.066]
[1743925963117,0.29439881,591.59,590.62,0.066]
[1743925963614,0.31100924,591.58,590.62,0.066]
[1743925966014,0.31100924,591.63,590.62,0.066]
[1743925966215,0.2944013,591.57,590.62,0.066]
[1743925966418,0.31100924,591.56,590.62,0.066]
[1743925967118,0.31100924,591.56,590.57,0.33865587]
[1743925967414,0.2944013,591.57,590.57,0.33865587]
[1743925967618,0.31100457,591.56,590.58,0.28706221]
[1743925967919,0.31100457,591.56,590.57,0.33865587]
[1743925968120,0.459,591.55,590.57,0.33865587]
[1743925969319,0.29440379,591.54,590.57,0.33865587]
[1743925969520,0.29440379,591.54,590.58,0.066]
[1743925971924,0.459,591.55,590.58,0.066]
[1743925972123,0.29440628,591.53,590.58,0.066]
[1743925972320,0.544,591.52,590.58,0.066]
[1743925974820,0.31100509,591.51,590.58,0.066]
[1743925975021,0.544,591.52,590.58,0.066]
[1743925975222,0.29440877,591.51,590.58,0.066]
[1743925977828,0.31100343,591.5,590.59,0.28706109]
[1743925978023,0.544,591.52,590.58,0.066]
[1743925978228,0.29441002,591.5,590.58,0.066]
[1743925980828,0.544,591.52,590.58,0.066]
[1743925982132,0.29440877,591.51,590.58,0.066]
[1743925982628,0.31104235,591.5,590.58,0.066]
[1743925982832,0.69804235,591.5,590.58,0.066]
[1743925983028,0.31104235,591.49,590.58,0.066]
[1743925983528,0.387,591.5,590.58,0.066]
[1743925983832,0.31104511,591.49,590.58,0.066]
[1743925984531,0.31104511,591.49,590.57,0.33865587]
[1743925984835,0.387,591.5,590.57,0.33865587]
[1743925985033,0.31104483,591.49,590.57,0.33865587]
[1743925985334,0.29443243,591.48,590.57,0.33865587]
[1743925985532,0.31104483,591.47,590.57,0.33865587]
[1743925986634,0.29443243,591.48,590.57,0.33865587]
[1743925986930,0.31103842,591.47,590.57,0.33865587]
[1743925987130,0.31103842,591.49,590.58,0.066]
[1743925987337,0.31103842,591.48,590.58,0.066]
[1743925987535,0.31103842,591.49,590.58,0.066]
[1743925987737,0.31103842,591.48,590.58,0.066]
[1743925988038,0.31103842,591.47,590.58,0.066]
[1743925988235,0.387,591.5,590.58,0.066]
[1743925988236,0.29444738,591.48,590.58,0.066]
[1743925988431,0.311042,591.47,590.58,0.066]
[1743925989731,0.29444738,591.48,590.58,0.066]
[1743925989932,0.387,591.5,590.58,0.066]
[1743925990128,0.29443243,591.46,590.58,0.066]
[1743925991336,0.3110409,591.45,590.58,0.066]
[1743925991535,0.29443243,591.46,590.58,0.066]
[1743925992536,0.3110434,591.45,590.58,0.066]
[1743925992730,0.387,591.5,590.58,0.066]
[1743925994032,0.29444489,591.49,590.58,0.066]
[1743925998734,0.387,591.5,590.58,0.066]
[1743925998933,0.596,591.48,590.58,0.066]
[1743925999134,0.89043119,591.48,590.58,0.066]
[1743926001847,0.596,591.48,590.58,0.066]
[1743926002048,0.31103852,591.47,590.58,0.066]
[1743926003050,0.596,591.48,590.58,0.066]
[1743926003349,0.29443866,591.46,590.58,0.066]
[1743926004950,0.596,591.48,590.58,0.066]
[1743926005148,0.29444863,591.45,590.58,0.066]
[1743926007952,0.596,591.48,590.58,0.066]
[1743926008154,0.29449348,591.44,590.58,0.066]
[1743926010152,0.29449348,591.44,590.57,0.33865587]
[1743926010858,0.396,591.44,590.57,0.33865587]
[1743926011958,0.31108385,591.43,590.57,0.33865587]
[1743926012258,0.60553995,591.43,590.57,0.33865587]
[1743926012460,0.31108385,591.42,590.57,0.33865587]
[1743926012856,0.2944561,591.43,590.57,0.33865587]
[1743926013057,0.31108378,591.42,590.57,0.33865587]
[1743926013260,0.2944561,591.43,590.57,0.33865587]
[1743926013761,0.2944561,591.43,590.58,0.066]
[1743926014061,0.396,591.44,590.58,0.066]
[1743926014263,0.29444115,591.42,590.58,0.066]
[1743926016863,0.396,591.44,590.58,0.066]
[1743926018165,0.29446981,591.43,590.58,0.066]
[1743926019863,0.396,591.44,590.58,0.066]
[1743926020162,0.29443243,591.42,590.58,0.066]
[1743926022766,0.396,591.44,590.58,0.066]
[1743926023266,0.2944424,591.41,590.58,0.066]
[1743926025961,0.396,591.44,590.58,0.066]
[1743926026867,0.396,591.44,590.57,0.33865587]
[1743926027168,0.29446233,591.43,590.57,0.33865587]
[1743926028873,0.396,591.44,590.57,0.33865587]
[1743926029074,0.31105347,591.43,590.57,0.33865587]
[1743926029577,0.31105347,591.43,590.58,0.066]
[1743926030174,0.29446607,591.42,590.58,0.066]
[1743926030376,0.31105347,591.41,590.58,0.066]
[1743926031474,0.554,591.4,590.58,0.066]
[1743926031669,0.31105347,591.39,590.58,0.066]
[1743926032770,0.554,591.4,590.58,0.066]
[1743926032976,0.31105703,591.39,590.58,0.066]
[1743926033275,0.29446109,591.38,590.58,0.066]
[1743926033471,0.31105703,591.37,590.58,0.066]
[1743926035075,0.31105703,591.36,590.58,0.066]
[1743926035276,0.554,591.4,590.58,0.066]
[1743926035477,0.31105625,591.39,590.58,0.066]
[1743926036073,0.29447354,591.38,590.58,0.066]
[1743926036271,0.31110331,591.37,590.58,0.066]
[1743926037878,0.31110604,591.36,590.58,0.066]
[1743926038077,0.31110604,591.37,590.58,0.066]
[1743926038274,0.31110604,591.35,590.58,0.066]
[1743926038476,0.31110604,591.34,590.58,0.066]
[1743926038679,0.31110604,591.37,590.58,0.066]
[1743926039081,0.29448725,591.33,590.58,0.066]
[1743926039275,0.31110604,591.32,590.58,0.066]
[1743926040881,0.394,591.38,590.58,0.066]
[1743926041185,0.31114953,591.37,590.58,0.066]
[1743926042084,0.2945184,591.36,590.58,0.066]
[1743926042284,0.31114953,591.35,590.58,0.066]
[1743926043577,0.31114953,591.35,590.17,0.2945184]
[1743926043777,0.31114953,591.35,590.18,0.62609023]
[1743926044082,0.31114953,591.35,590.19,0.62608449]
[1743926044377,0.31114953,591.35,590.2,0.28721057]
[1743926044983,0.2945184,591.36,590.19,0.33887392]
[1743926045284,0.31115301,591.35,590.2,0.28720888]
[1743926046986,0.31115301,591.37,590.21,0.066]
[1743926047186,0.2945209,591.34,590.21,0.066]
[1743926047386,0.31115407,591.33,590.22,0.28720992]
[1743926048788,0.2945209,591.34,590.21,0.066]
[1743926048989,0.31115407,591.32,590.23,0.28720992]
[1743926049184,0.31115407,591.33,590.22,0.28720992]
[1743926049386,0.64938041,591.32,590.23,0.28720992]
[1743926049585,0.31115407,591.31,590.22,0.28722507]
[1743926050181,0.29453336,591.3,590.22,0.28722507]
[1743926050385,0.31115407,591.29,590.22,0.28722507]
[1743926050585,0.29453336,591.3,590.21,0.066]
[1743926050789,0.3111642,591.29,590.22,0.28721993]
[1743926052091,0.29453336,591.3,590.22,0.28721993]
[1743926052389,0.31116453,591.29,590.23,0.28722029]
[1743926052588,0.31116453,591.29,590.22,0.28722029]
[1743926052985,0.31116453,591.31,590.22,0.28722029]
[1743926053188,0.71353585,591.28,590.22,0.28722029]
[1743926053384,0.31116453,591.27,590.22,0.28722029]
[1743926053689,0.71353585,591.28,590.21,0.066]
[1743926053887,0.31116453,591.27,590.22,0.28722026]
[1743926055595,0.71353585,591.28,590.22,0.28722026]
[1743926055790,0.419,591.28,590.22,0.28722026]
[1743926056193,0.29453087,591.27,590.22,0.28722026]
[1743926057097,0.29453087,591.27,590.21,0.066]
[1743926057300,0.29453087,591.27,590.22,0.2871905]
[1743926058797,0.419,591.28,590.23,0.28719043]
[1743926059103,0.31113347,591.27,590.22,0.28719043]
[1743926059302,0.419,591.28,590.23,0.28719043]
[1743926059502,0.419,591.28,590.22,0.28719043]
[1743926059703,0.419,591.28,590.24,0.28719043]
[1743926059900,0.419,591.28,590.25,0.28719043]
[1743926060100,0.29452588,591.27,590.22,0.28719043]
[1743926060301,0.29452588,591.27,590.21,0.066]
[1743926060302,0.29452588,591.27,590.23,0.28719043]
[1743926060504,0.29452588,591.27,590.21,0.066]
[1743926060805,0.29452588,591.27,590.22,0.28719071]
[1743926061807,0.419,591.28,590.22,0.28719071]
[1743926062005,0.419,591.28,590.21,0.066]
[1743926062206,0.419,591.28,590.22,0.28719233]
[1743926063107,0.29452588,591.27,590.22,0.28719233]
[1743926064302,0.29452588,591.27,590.21,0.066]
[1743926064505,0.29452588,591.27,590.22,0.2871904]
[1743926064807,0.419,591.28,590.22,0.2871904]
[1743926065409,0.419,591.28,590.21,0.066]
[1743926065710,0.419,591.28,590.22,0.28719028]
[1743926066109,0.29452588,591.27,590.22,0.28719028]
[1743926067108,0.29452588,591.27,590.2,0.28719028]
[1743926068008,0.419,591.28,590.2,0.28719028]
[1743926068513,0.29453087,591.26,590.19,0.33887392]
[1743926068708,0.29453087,591.26,590.21,0.28719106]
[1743926068909,0.29453087,591.26,590.22,0.28719106]
[1743926069106,0.29453087,591.26,590.2,0.28719106]
[1743926069511,0.29453087,591.26,590.21,0.066]
[1743926069709,0.29453087,591.26,590.22,0.28719106]
[1743926070815,0.33822634,591.32,590.22,0.28719106]
[1743926071232,0.29452588,591.25,590.22,0.28719106]
[1743926071408,0.33822634,591.32,590.22,0.28719106]
[1743926072316,0.2945184,591.31,590.22,0.28719106]
[1743926072917,0.31113723,591.3,590.22,0.28719106]
[1743926073615,0.31113862,591.29,590.23,0.28719465]
[1743926073818,0.31113862,591.3,590.22,0.28719465]
[1743926074016,0.381,591.28,590.23,0.28719465]
[1743926074220,0.31113862,591.27,590.22,0.28719465]
[1743926074421,0.31113862,591.27,590.23,0.28719465]
[1743926074621,0.31113862,591.27,590.22,0.28719465]
[1743926077325,0.29453087,591.26,590.22,0.28719465]
[1743926077622,0.31113862,591.25,590.22,0.28719465]
[1743926079217,0.29453087,591.26,590.21,0.066]
[1743926079420,0.31113797,591.25,590.22,0.28719397]
[1743926079621,0.29453087,591.26,590.22,0.28719397]
[1743926079820,0.3111549,591.25,590.22,0.28719397]
[1743926080017,0.381,591.28,590.22,0.28719397]
[1743926080018,0.3111549,591.27,590.22,0.28719397]
[1743926080319,0.29453461,591.24,590.21,0.066]
[1743926080518,0.29453461,591.24,590.22,0.28721019]
[1743926081723,0.29453461,591.24,590.21,0.28721019]
[1743926082224,0.29453461,591.24,590.22,0.28721019]
[1743926082422,0.29453461,591.24,590.2,0.28721019]
[1743926082623,0.29453461,591.24,590.21,0.28721019]
[1743926082820,0.381,591.28,590.2,0.28721019]
[1743926083021,0.31114759,591.27,590.2,0.28721019]
[1743926083220,0.29453585,591.23,590.2,0.28721019]
[1743926083622,0.29453585,591.23,590.19,0.33887392]
[1743926083823,0.29453585,591.23,590.2,0.2872023]
[1743926084322,0.29453585,591.23,590.21,0.066]
[1743926084623,0.29453585,591.23,590.22,0.2872023]
[1743926085423,0.29453585,591.23,590.21,0.066]
[1743926085723,0.29453585,591.23,590.22,0.28719936]
[1743926085923,0.381,591.28,590.22,0.28719936]
[1743926086118,0.29453585,591.22,590.22,0.28719936]
[1743926088826,0.33822634,591.32,590.22,0.28719936]
[1743926089026,0.31114999,591.31,590.22,0.28719936]
[1743926089522,0.31114395,591.3,590.23,0.28719986]
[1743926089825,0.31114395,591.29,590.24,0.28719986]
[1743926090021,0.31114395,591.31,590.22,0.28719986]
[1743926090221,0.31114395,591.28,590.25,0.28719986]
[1743926090425,0.29453087,591.29,590.26,0.28719986]
[1743926090620,0.3111452,591.28,590.22,0.28719986]
[1743926090825,0.29453087,591.29,590.23,0.28719986]
[1743926091023,0.391,591.27,590.22,0.28719986]
[1743926092126,0.391,591.27,590.21,0.066]
[1743926092327,0.29453087,591.26,590.22,0.28719993]
[1743926093230,0.389,591.25,590.22,0.28719993]
[1743926093732,0.389,591.25,590.21,0.066]
[1743926093927,0.389,591.25,590.22,0.28719989]
[1743926095430,0.389,591.25,590.21,0.066]
[1743926095731,0.389,591.25,590.22,0.28720004]
[1743926096235,0.2945371,591.24,590.22,0.28720004]
[1743926097831,0.389,591.25,590.22,0.28720004]
[1743926098336,0.2945371,591.24,590.22,0.28720004]
[1743926098838,0.2945371,591.24,590.21,0.066]
[1743926099036,0.2945371,591.24,590.23,0.28720004]
[1743926099238,0.2945371,591.24,590.24,0.28720004]
[1743926099437,0.2945371,591.24,590.22,0.28720004]
[1743926099636,0.2945371,591.24,590.23,0.28720004]
[1743926099839,0.2945371,591.24,590.24,0.28720004]
[1743926100135,0.2945371,591.24,590.25,0.28720004]
[1743926100341,0.2945371,591.24,590.22,0.28720004]
[1743926100539,0.2945371,591.24,590.23,0.28720004]
[1743926100840,0.389,591.25,590.22,0.28720004]
[1743926101040,0.389,591.25,590.23,0.28720004]
[1743926101242,0.2945371,591.24,590.22,0.28720004]
[1743926101442,0.2945371,591.24,590.23,0.28720004]
[1743926101742,0.2945371,591.24,590.24,0.28720004]
[1743926101939,0.2945371,591.24,590.22,0.28720004]
[1743926102139,0.31114395,591.23,590.22,0.28720004]
[1743926103046,0.2945371,591.24,590.22,0.28720004]
[1743926103446,0.2945371,591.24,590.21,0.066]
[1743926103643,0.2945371,591.24,590.23,0.28720061]
[1743926103843,0.389,591.25,590.24,0.28720063]
[1743926104045,0.389,591.25,590.25,0.28720063]
[1743926104244,0.29453959,591.23,590.25,0.28720063]
[1743926104444,0.29453959,591.23,590.26,0.28720063]
[1743926104646,0.29453959,591.23,590.21,0.066]
[1743926104647,0.29453959,591.23,590.22,0.28720063]
[1743926106849,0.389,591.25,590.22,0.28720063]
[1743926107245,0.2945371,591.24,590.22,0.28720063]
[1743926108445,0.31115068,591.23,590.22,0.28720063]
[1743926110152,0.31115068,591.24,590.22,0.28720063]
[1743926110353,0.29454084,591.22,590.22,0.28720063]
[1743926111955,0.31116131,591.21,590.23,0.28721707]
[1743926112153,0.31116131,591.21,590.24,0.28721707]
[1743926112353,0.29454084,591.22,590.22,0.28721707]
[1743926112653,0.31118486,591.21,590.22,0.28721707]
[1743926112854,0.509,591.2,590.2,0.28721707]
[1743926113055,0.31118486,591.19,590.2,0.28721707]
[1743926113455,0.509,591.2,590.19,0.33887392]
[1743926113656,0.3111873,591.18,590.21,0.28724277]
[1743926113849,0.3111873,591.19,590.2,0.28724277]
[1743926114051,0.3111873,591.18,590.21,0.28724277]
[1743926114248,0.3111873,591.19,590.2,0.28724277]
[1743926114450,0.3111873,591.18,590.21,0.28724277]
[1743926114650,0.3111873,591.19,590.2,0.28724277]
[1743926114850,0.3111873,591.18,590.19,0.33887392]
[1743926115057,0.64948801,591.19,590.19,0.33887392]
[1743926115250,0.33830071,591.19,590.19,0.33887392]
[1743926115450,0.31123661,591.18,590.19,0.33887392]
[1743926116154,0.31123661,591.18,590.2,0.066]
[1743926116353,0.29460567,591.17,590.2,0.066]
[1743926116554,0.31123661,591.16,590.2,0.066]
[1743926118458,0.29460567,591.17,590.2,0.066]
[1743926118657,0.31123937,591.16,590.2,0.066]
[1743926119156,0.31123937,591.18,590.2,0.066]
[1743926120161,0.29463934,591.17,590.2,0.066]
[1743926120355,0.31123937,591.16,590.2,0.066]
[1743926121458,0.29463934,591.17,590.2,0.066]
[1743926121859,0.33830071,591.19,590.2,0.066]
[1743926122060,0.31123756,591.18,590.2,0.066]
[1743926122760,0.29464683,591.17,590.2,0.066]
[1743926124657,0.31123756,591.16,590.2,0.066]
[1743926125061,0.31123756,591.18,590.2,0.066]
[1743926125259,0.31123756,591.17,590.2,0.066]
[1743926125458,0.31123756,591.18,590.2,0.066]
[1743926125657,0.31123756,591.17,590.2,0.066]
[1743926125860,0.31123756,591.16,590.2,0.066]
[1743926126062,0.31123756,591.18,590.2,0.066]
[1743926126361,0.29461939,591.16,590.2,0.066]
[1743926126561,0.31123756,591.15,590.2,0.066]
[1743926127366,0.29461939,591.16,590.2,0.066]
[1743926127761,0.3112369,591.15,590.2,0.066]
[1743926128166,0.33830071,591.19,590.19,0.33887392]
[1743926128467,0.31123723,591.18,590.19,0.33887392]
[1743926129168,0.29465556,591.17,590.19,0.33887392]
[1743926129470,0.31123723,591.16,590.19,0.33887392]
[1743926130469,0.3112369,591.15,590.19,0.33887392]
[1743926130669,0.3112369,591.14,590.19,0.33887392]
[1743926131168,0.29462438,591.13,590.19,0.33887392]
[1743926131367,0.3112369,591.12,590.19,0.33887392]
[1743926131868,0.3112369,591.12,590.2,0.066]
[1743926134067,0.3112369,591.14,590.2,0.066]
[1743926134268,0.347,591.15,590.2,0.066]
[1743926134567,0.31122479,591.14,590.2,0.066]
[1743926135064,0.29464308,591.13,590.2,0.066]
[1743926135269,0.31122479,591.12,590.2,0.066]
[1743926137068,0.347,591.15,590.2,0.066]
[1743926137267,0.31123057,591.14,590.2,0.066]
[1743926138268,0.2946356,591.13,590.2,0.066]
[1743926138471,0.31123057,591.12,590.2,0.066]
[1743926139869,0.439,591.11,590.2,0.066]
[1743926140075,0.31123057,591.1,590.2,0.066]
[1743926142076,0.73361066,591.11,590.2,0.066]
[1743926142273,0.31128315,591.1,590.2,0.066]
[1743926143276,0.29464433,591.09,590.2,0.066]
[1743926143575,0.31128315,591.08,590.2,0.066]
[1743926143777,0.31128314,591.07,590.2,0.066]
[1743926143977,0.31128314,591.08,590.2,0.066]
[1743926146082,0.31128314,591.1,590.2,0.066]
[1743926146281,0.29464683,591.07,590.2,0.066]
[1743926146476,0.31128314,591.06,590.2,0.066]
[1743926149080,0.31128314,591.1,590.2,0.066]
[1743926149280,0.29466429,591.05,590.2,0.066]
[1743926149782,0.31128654,591.04,590.2,0.066]
[1743926150580,0.29466429,591.05,590.2,0.066]
[1743926150781,0.31128637,591.04,590.2,0.066]
[1743926151990,0.33835794,591.09,590.2,0.066]
[1743926152180,0.31128982,591.08,590.2,0.066]
[1743926153388,0.29469049,591.07,590.2,0.066]
[1743926153587,0.31128982,591.06,590.2,0.066]
[1743926154391,0.29469049,591.07,590.2,0.066]
[1743926154891,0.33835794,591.09,589.73,1.26791]
[1743926155091,0.33835794,591.09,589.46,1.521492]
[1743926155092,0.523,591.07,589.74,0.62647132]
[1743926155284,0.523,591.07,589.75,0.62646557]
[1743926155488,0.523,591.07,589.76,0.62645982]
[1743926155684,0.523,591.07,589.77,0.62645407]
[1743926155890,0.523,591.07,589.78,0.62644832]
[1743926156090,0.523,591.07,589.79,0.62644257]
[1743926156293,0.29468176,591.06,589.8,0.28733883]
[1743926156592,0.29468176,591.06,589.8,0.62643682]
[1743926156892,0.29468176,591.06,589.81,0.28733883]
[1743926157091,0.29468176,591.06,589.82,0.3390865]
[1743926157392,0.29468176,591.06,589.83,0.28733883]
[1743926158593,0.29468176,591.06,589.84,0.339075]
[1743926158794,0.29468176,591.06,589.85,0.28733883]
[1743926158994,0.29468176,591.06,589.86,0.3390635]
[1743926159295,0.29468176,591.06,589.87,0.28733883]
[1743926159495,0.29468176,591.06,589.88,0.33905201]
[1743926161791,0.523,591.07,589.88,0.33905201]
[1743926162097,0.83,591.07,589.88,0.33905201]
[1743926163593,0.83,591.07,589.89,0.28733947]
[1743926163795,0.83,591.07,589.89,0.62638573]
[1743926163995,0.83,591.07,589.9,0.28733947]
[1743926164800,0.83,591.07,589.89,0.33904626]
[1743926165098,0.33837512,591.06,589.89,0.33904626]
[1743926165500,0.31130247,591.05,589.9,0.28735654]